[Event "Late-Titled-Tuesday-Blitz-March-26-2024"]
[Site "Chess.com"]
[Date "2024.03.26"]
[Round "1"]
[White "Angry_Twin"]
[Black "secretsuperstar7"]
[Result "0-1"]
[WhiteElo "2891"]
[BlackElo "2502"]
[TimeControl "180+1"]
[EndTime "14:09:07 PDT"]
[Termination "secretsuperstar7 won by resignation"]

1. e4 {[%clk 0:02:59.8]} 1... c5 {[%clk 0:02:56]} 2. Nf3 {[%clk 0:03:00]} 2...
Nc6 {[%clk 0:02:53.5]} 3. Bb5 {[%clk 0:03:00]} 3... Nd4 {[%clk 0:02:51.3]} 4.
Nxd4 {[%clk 0:02:58.4]} 4... cxd4 {[%clk 0:02:51.2]} 5. O-O {[%clk 0:02:58.8]}
5... a6 {[%clk 0:02:49.8]} 6. Bd3 {[%clk 0:02:58.4]} 6... d6 {[%clk 0:02:46.4]}
7. c3 {[%clk 0:02:58.6]} 7... dxc3 {[%clk 0:02:46.2]} 8. Nxc3 {[%clk 0:02:55.4]}
8... Nf6 {[%clk 0:02:46]} 9. Bc2 {[%clk 0:02:54.9]} 9... Bg4 {[%clk 0:02:42.5]}
10. f3 {[%clk 0:02:54.1]} 10... Bh5 {[%clk 0:02:42.3]} 11. d4 {[%clk 0:02:54.3]}
11... e6 {[%clk 0:02:42.7]} 12. Be3 {[%clk 0:02:54.4]} 12... Be7 {[%clk
0:02:42.8]} 13. Qd2 {[%clk 0:02:54.8]} 13... O-O {[%clk 0:02:42.8]} 14. Rad1
{[%clk 0:02:55.3]} 14... b5 {[%clk 0:02:40.8]} 15. a3 {[%clk 0:02:55.9]} 15...
Rc8 {[%clk 0:02:40]} 16. Rfe1 {[%clk 0:02:56.1]} 16... Nd7 {[%clk 0:02:31.6]}
17. Ne2 {[%clk 0:02:36.8]} 17... Nb6 {[%clk 0:02:28.6]} 18. b3 {[%clk
0:02:32.5]} 18... d5 {[%clk 0:02:27]} 19. Nf4 {[%clk 0:02:28.3]} 19... Bg6
{[%clk 0:02:26.5]} 20. Ra1 {[%clk 0:02:26]} 20... Qc7 {[%clk 0:02:23.9]} 21. Bd3
{[%clk 0:02:22.1]} 21... Qc3 {[%clk 0:02:22.1]} 22. Reb1 {[%clk 0:02:14.1]}
22... dxe4 {[%clk 0:02:16.7]} 23. fxe4 {[%clk 0:02:12.7]} 23... Rfd8 {[%clk
0:02:13.7]} 24. Qe2 {[%clk 0:01:19]} 24... Bf6 {[%clk 0:01:39.3]} 25. Nxg6
{[%clk 0:01:17]} 25... hxg6 {[%clk 0:01:37.2]} 26. e5 {[%clk 0:01:17.7]} 26...
Be7 {[%clk 0:01:35.3]} 27. a4 {[%clk 0:01:18.1]} 27... Nd5 {[%clk 0:01:29.4]}
28. Rc1 {[%clk 0:00:52.3]} 28... Qxb3 {[%clk 0:01:26.1]} 29. Rcb1 {[%clk
0:00:52.6]} 29... Qc3 {[%clk 0:01:22.4]} 30. Rc1 {[%clk 0:00:53.1]} 30... Qb3
{[%clk 0:01:19.6]} 31. Rxc8 {[%clk 0:00:30.8]} 31... Rxc8 {[%clk 0:01:19.3]} 32.
axb5 {[%clk 0:00:31.6]} 32... axb5 {[%clk 0:01:16.4]} 33. Rb1 {[%clk 0:00:32]}
33... Qa3 {[%clk 0:01:08.8]} 34. Rxb5 {[%clk 0:00:16.6]} 34... Nc3 {[%clk
0:01:05.3]} 35. Qc2 {[%clk 0:00:16.9]} 35... Qa1+ {[%clk 0:00:57.6]} 36. Bc1
{[%clk 0:00:16.3]} 36... Ba3 {[%clk 0:00:37.6]} 37. Rb1 {[%clk 0:00:16.2]} 37...
Qxb1 {[%clk 0:00:36.5]} 38. Qxb1 {[%clk 0:00:16.2]} 38... Nxb1 {[%clk
0:00:36.8]} 39. Bg5 {[%clk 0:00:17]} 39... Rb8 {[%clk 0:00:35.6]} 40. h4 {[%clk
0:00:16.7]} 40... Bb2 {[%clk 0:00:35.4]} 41. d5 {[%clk 0:00:12.9]} 41... Bxe5
{[%clk 0:00:33.6]} 42. dxe6 {[%clk 0:00:13]} 42... fxe6 {[%clk 0:00:33.8]} 43.
Bxg6 {[%clk 0:00:13.2]} 43... Nc3 {[%clk 0:00:33]} 44. h5 {[%clk 0:00:13.1]}
44... Ne2+ {[%clk 0:00:32.1]} 45. Kf2 {[%clk 0:00:13.1]} 45... Nf4 {[%clk
0:00:31.4]} 46. Be4 {[%clk 0:00:12.9]} 46... Rb2+ {[%clk 0:00:30.6]} 47. Kf3
{[%clk 0:00:12.9]} 47... Nd5 {[%clk 0:00:29.2]} 48. g4 {[%clk 0:00:10.5]} 48...
Nf6 {[%clk 0:00:29]} 49. Bc6 {[%clk 0:00:05.8]} 49... Rb3+ {[%clk 0:00:29]} 50.
Kg2 {[%clk 0:00:05.9]} 50... Nxg4 {[%clk 0:00:28.8]} 51. Bd7 {[%clk 0:00:06.3]}
51... Kf7 {[%clk 0:00:28.6]} 52. Bc8 {[%clk 0:00:06]} 52... Ne3+ {[%clk
0:00:28.7]} 53. Kf2 {[%clk 0:00:05.8]} 53... Nf5 {[%clk 0:00:28.7]} 54. Bd7
{[%clk 0:00:04.3]} 54... Rb2+ {[%clk 0:00:28.5]} 55. Kf3 {[%clk 0:00:04.4]}
55... Rh2 {[%clk 0:00:28]} 56. Bc8 {[%clk 0:00:01.9]} 56... Rxh5 {[%clk
0:00:27.3]} 57. Bd2 {[%clk 0:00:02.7]} 57... Rh3+ {[%clk 0:00:27.1]} 58. Ke4
{[%clk 0:00:02.8]} 58... Nd6+ {[%clk 0:00:26.3]} 59. Kxe5 {[%clk 0:00:03.5]}
59... Nxc8 {[%clk 0:00:26.4]} 60. Kf4 {[%clk 0:00:04.4]} 60... Rd3 {[%clk
0:00:25.7]} 61. Be1 {[%clk 0:00:04.4]} 61... Rd8 {[%clk 0:00:25.7]} 62. Ke4
{[%clk 0:00:04.8]} 62... Ne7 {[%clk 0:00:25.9]} 63. Bg3 {[%clk 0:00:05.2]} 63...
Rd7 {[%clk 0:00:25.9]} 64. Bh4 {[%clk 0:00:05]} 64... Nf5 {[%clk 0:00:25.2]} 65.
Bf2 {[%clk 0:00:04.3]} 65... g5 {[%clk 0:00:25.4]} 66. Ke5 {[%clk 0:00:03.7]}
66... g4 {[%clk 0:00:25]} 67. Kf4 {[%clk 0:00:04]} 67... Rd2 {[%clk 0:00:24.4]}
68. Bb6 {[%clk 0:00:03.5]} 68... g3 {[%clk 0:00:24.1]} 69. Ke4 {[%clk
0:00:03.8]} 69... g2 {[%clk 0:00:24.1]} 70. Kf3 {[%clk 0:00:04]} 70... Nh4+
{[%clk 0:00:23.7]} 71. Kg3 {[%clk 0:00:04.3]} 71... Rd1 {[%clk 0:00:23.3]} 72.
Kh2 {[%clk 0:00:02.4]} 72... g1=Q+ {[%clk 0:00:22.6]} 73. Bxg1 {[%clk
0:00:03.1]} 73... Nf3+ {[%clk 0:00:22.7]} 74. Kg2 {[%clk 0:00:03.4]} 74... Rxg1+
{[%clk 0:00:21.9]} 75. Kh3 {[%clk 0:00:04.3]} 75... Ng5+ {[%clk 0:00:20.9]} 76.
Kh2 {[%clk 0:00:04.5]} 76... Rd1 {[%clk 0:00:20.7]} 77. Kg2 {[%clk 0:00:05.1]}
77... e5 {[%clk 0:00:21.2]} 78. Kf2 {[%clk 0:00:05.7]} 78... e4 {[%clk
0:00:21.4]} 79. Ke2 {[%clk 0:00:06.6]} 79... Rd8 {[%clk 0:00:21.6]} 0-1

[Event "Late-Titled-Tuesday-Blitz-March-26-2024"]
[Site "Chess.com"]
[Date "2024.03.26"]
[Round "1"]
[White "AryanTari"]
[Black "ACollins05"]
[Result "1-0"]
[WhiteElo "2996"]
[BlackElo "2511"]
[TimeControl "180+1"]
[EndTime "14:09:17 PDT"]
[Termination "AryanTari won by checkmate"]

1. e4 {[%clk 0:03:00.9]} 1... c5 {[%clk 0:02:57.4]} 2. Nf3 {[%clk 0:03:00.4]}
2... d6 {[%clk 0:02:57.4]} 3. Bc4 {[%clk 0:02:57.8]} 3... Nf6 {[%clk 0:02:56.9]}
4. d3 {[%clk 0:02:57.7]} 4... Nc6 {[%clk 0:02:54.9]} 5. c3 {[%clk 0:02:51.9]}
5... g6 {[%clk 0:02:53]} 6. O-O {[%clk 0:02:51.4]} 6... Bg7 {[%clk 0:02:50.1]}
7. h3 {[%clk 0:02:51.2]} 7... O-O {[%clk 0:02:45.6]} 8. Re1 {[%clk 0:02:51]}
8... b6 {[%clk 0:02:45.3]} 9. Bb3 {[%clk 0:02:43.3]} 9... Bb7 {[%clk 0:02:43.8]}
10. d4 {[%clk 0:02:43.2]} 10... cxd4 {[%clk 0:02:37.9]} 11. cxd4 {[%clk
0:02:43]} 11... Rc8 {[%clk 0:02:38.5]} 12. Nc3 {[%clk 0:02:42.5]} 12... e6
{[%clk 0:02:35.2]} 13. Bg5 {[%clk 0:02:37.2]} 13... h6 {[%clk 0:02:29.7]} 14.
Bh4 {[%clk 0:02:37.1]} 14... g5 {[%clk 0:02:27.3]} 15. Bg3 {[%clk 0:02:36.7]}
15... Na5 {[%clk 0:02:25.7]} 16. Bc2 {[%clk 0:02:34.8]} 16... Nc4 {[%clk
0:02:23.7]} 17. Qc1 {[%clk 0:02:21.3]} 17... a6 {[%clk 0:02:04.6]} 18. Bd3
{[%clk 0:01:59]} 18... b5 {[%clk 0:02:03.7]} 19. a3 {[%clk 0:01:58.6]} 19... Nb6
{[%clk 0:01:58.4]} 20. Qd2 {[%clk 0:01:55.9]} 20... Nc4 {[%clk 0:01:56.9]} 21.
Qe2 {[%clk 0:01:56]} 21... Qb6 {[%clk 0:01:50.4]} 22. Rac1 {[%clk 0:01:35.4]}
22... Qa5 {[%clk 0:01:46]} 23. Bxc4 {[%clk 0:01:32.2]} 23... Rxc4 {[%clk
0:01:46.9]} 24. Bxd6 {[%clk 0:01:32.1]} 24... Rfc8 {[%clk 0:01:42.6]} 25. Ne5
{[%clk 0:01:31.6]} 25... Rxd4 {[%clk 0:01:36.6]} 26. Rcd1 {[%clk 0:01:23.6]}
26... Rxd1 {[%clk 0:01:28.4]} 27. Rxd1 {[%clk 0:01:24.5]} 27... Ne8 {[%clk
0:01:26.6]} 28. Bb4 {[%clk 0:01:16]} 28... Qc7 {[%clk 0:01:18.3]} 29. Rd7 {[%clk
0:00:55.3]} 29... Qxe5 {[%clk 0:01:16.4]} 30. Rxb7 {[%clk 0:00:55.9]} 30... Nf6
{[%clk 0:00:36.4]} 31. Qf3 {[%clk 0:00:49.5]} 31... Rb8 {[%clk 0:00:24.1]} 32.
Ra7 {[%clk 0:00:44.8]} 32... h5 {[%clk 0:00:15.3]} 33. Rxa6 {[%clk 0:00:40.3]}
33... g4 {[%clk 0:00:15.7]} 34. hxg4 {[%clk 0:00:40.3]} 34... hxg4 {[%clk
0:00:16.6]} 35. Qe3 {[%clk 0:00:40.6]} 35... Rd8 {[%clk 0:00:13.3]} 36. Rc6
{[%clk 0:00:31.5]} 36... Kh7 {[%clk 0:00:11]} 37. g3 {[%clk 0:00:30.6]} 37...
Bh6 {[%clk 0:00:10.9]} 38. Qe2 {[%clk 0:00:29.6]} 38... Rd2 {[%clk 0:00:10.2]}
39. Qxb5 {[%clk 0:00:25.1]} 39... Qxb5 {[%clk 0:00:09.3]} 40. Nxb5 {[%clk
0:00:24.8]} 40... Rxb2 {[%clk 0:00:08.4]} 41. Bc3 {[%clk 0:00:24.4]} 41... Rb1+
{[%clk 0:00:08.9]} 42. Kg2 {[%clk 0:00:24.6]} 42... Nxe4 {[%clk 0:00:09.4]} 43.
a4 {[%clk 0:00:20.7]} 43... Nxc3 {[%clk 0:00:06.8]} 44. Nxc3 {[%clk 0:00:20.3]}
44... Ra1 {[%clk 0:00:07.3]} 45. Ra6 {[%clk 0:00:20]} 45... Bg7 {[%clk
0:00:06.4]} 46. Nb5 {[%clk 0:00:17.8]} 46... Ra2 {[%clk 0:00:06.3]} 47. Ra7
{[%clk 0:00:17.8]} 47... Bf8 {[%clk 0:00:05.4]} 48. Rxf7+ {[%clk 0:00:17.2]}
48... Kg8 {[%clk 0:00:06]} 49. Rf4 {[%clk 0:00:16.8]} 49... Bg7 {[%clk
0:00:05.4]} 50. Rxg4 {[%clk 0:00:17.1]} 50... e5 {[%clk 0:00:05.3]} 51. Re4
{[%clk 0:00:16.8]} 51... Kf7 {[%clk 0:00:05.9]} 52. Nc3 {[%clk 0:00:17]} 52...
Ra3 {[%clk 0:00:05.6]} 53. Nb5 {[%clk 0:00:17.2]} 53... Ra2 {[%clk 0:00:05.5]}
54. Rc4 {[%clk 0:00:15.7]} 54... Ke6 {[%clk 0:00:05.6]} 55. Kf3 {[%clk
0:00:15.7]} 55... Bf6 {[%clk 0:00:05]} 56. Rc6+ {[%clk 0:00:14.8]} 56... Ke7
{[%clk 0:00:04.3]} 57. Nc3 {[%clk 0:00:13.9]} 57... Ra3 {[%clk 0:00:04]} 58. Ke4
{[%clk 0:00:13.8]} 58... Bg7 {[%clk 0:00:03.2]} 59. Nd5+ {[%clk 0:00:13.6]}
59... Kd7 {[%clk 0:00:03.6]} 60. Rc7+ {[%clk 0:00:14]} 60... Kd8 {[%clk
0:00:03.7]} 61. Rxg7 {[%clk 0:00:14.5]} 61... Rxa4+ {[%clk 0:00:04.5]} 62. Kxe5
{[%clk 0:00:15.1]} 62... Ra5 {[%clk 0:00:03.8]} 63. f4 {[%clk 0:00:14.7]} 63...
Ra2 {[%clk 0:00:03.5]} 64. f5 {[%clk 0:00:15]} 64... Re2+ {[%clk 0:00:04]} 65.
Kd6 {[%clk 0:00:14.8]} 65... Re8 {[%clk 0:00:04.9]} 66. Rd7+ {[%clk 0:00:13.5]}
66... Kc8 {[%clk 0:00:05]} 67. Re7 {[%clk 0:00:13.4]} 67... Rd8+ {[%clk
0:00:04.8]} 68. Ke6 {[%clk 0:00:13.7]} 68... Rf8 {[%clk 0:00:05.2]} 69. f6
{[%clk 0:00:14]} 69... Rh8 {[%clk 0:00:05.3]} 70. f7 {[%clk 0:00:13.8]} 70...
Rh6+ {[%clk 0:00:05.4]} 71. Nf6 {[%clk 0:00:14.3]} 71... Rh8 {[%clk 0:00:02.6]}
72. g4 {[%clk 0:00:13.3]} 72... Kd8 {[%clk 0:00:01.1]} 73. g5 {[%clk 0:00:12.4]}
73... Kc8 {[%clk 0:00:02]} 74. g6 {[%clk 0:00:12.4]} 74... Rd8 {[%clk
0:00:02.9]} 75. g7 {[%clk 0:00:12.1]} 75... Kb8 {[%clk 0:00:02.2]} 76. f8=B
{[%clk 0:00:11.1]} 76... Rc8 {[%clk 0:00:03.1]} 77. g8=Q {[%clk 0:00:08.8]}
77... Rc6+ {[%clk 0:00:03.1]} 78. Kf7 {[%clk 0:00:08.9]} 78... Rc8 {[%clk
0:00:03.7]} 79. Re8 {[%clk 0:00:09]} 79... Ka7 {[%clk 0:00:03.2]} 80. Rxc8
{[%clk 0:00:08.6]} 80... Kb7 {[%clk 0:00:03.8]} 81. Re8 {[%clk 0:00:09.3]} 81...
Ka7 {[%clk 0:00:04.6]} 82. Qg6 {[%clk 0:00:09.9]} 82... Kb7 {[%clk 0:00:05.5]}
83. Nd7 {[%clk 0:00:10.2]} 83... Ka7 {[%clk 0:00:06.4]} 84. Bc5+ {[%clk
0:00:09]} 84... Kb7 {[%clk 0:00:07.3]} 85. Rb8+ {[%clk 0:00:08.5]} 85... Kc7
{[%clk 0:00:06.3]} 86. Qd6# {[%clk 0:00:01.5]} 1-0

[Event "Late-Titled-Tuesday-Blitz-March-26-2024"]
[Site "Chess.com"]
[Date "2024.03.26"]
[Round "1"]
[White "Aram7Adam"]
[Black "Elsa167"]
[Result "1/2-1/2"]
[WhiteElo "2441"]
[BlackElo "2801"]
[TimeControl "180+1"]
[EndTime "14:09:31 PDT"]
[Termination "Game drawn by stalemate"]

1. e4 {[%clk 0:03:00.2]} 1... e6 {[%clk 0:03:00.1]} 2. d4 {[%clk 0:03:00.1]}
2... d5 {[%clk 0:03:00.8]} 3. Nd2 {[%clk 0:03:00.1]} 3... c5 {[%clk 0:02:59.8]}
4. Ngf3 {[%clk 0:02:59.3]} 4... cxd4 {[%clk 0:02:59.9]} 5. exd5 {[%clk
0:02:59.5]} 5... Qxd5 {[%clk 0:03:00.8]} 6. Bc4 {[%clk 0:02:59.6]} 6... Qd7
{[%clk 0:03:00.8]} 7. Nb3 {[%clk 0:02:59.7]} 7... Nc6 {[%clk 0:03:01.3]} 8.
Nbxd4 {[%clk 0:02:59.7]} 8... Nxd4 {[%clk 0:03:02.2]} 9. Qxd4 {[%clk 0:03:00.5]}
9... Qxd4 {[%clk 0:02:59.6]} 10. Nxd4 {[%clk 0:03:01.4]} 10... a6 {[%clk
0:02:57.7]} 11. a4 {[%clk 0:03:00.6]} 11... Bd7 {[%clk 0:02:58.2]} 12. O-O
{[%clk 0:02:59.1]} 12... Bc5 {[%clk 0:02:51.6]} 13. Nf3 {[%clk 0:02:58]} 13...
Nf6 {[%clk 0:02:48.8]} 14. Ne5 {[%clk 0:02:53.8]} 14... Ke7 {[%clk 0:02:44.7]}
15. Bg5 {[%clk 0:02:53]} 15... Rhd8 {[%clk 0:02:39.8]} 16. Rfd1 {[%clk 0:02:48]}
16... Be8 {[%clk 0:02:33.3]} 17. Bb3 {[%clk 0:02:19.1]} 17... h6 {[%clk
0:02:32.6]} 18. Bxf6+ {[%clk 0:02:14.1]} 18... gxf6 {[%clk 0:02:24.2]} 19. Ng4
{[%clk 0:01:54.3]} 19... f5 {[%clk 0:02:23.9]} 20. Ne5 {[%clk 0:01:45.8]} 20...
Bd4 {[%clk 0:02:06.5]} 21. Nc4 {[%clk 0:01:37.7]} 21... b5 {[%clk 0:01:58.7]}
22. axb5 {[%clk 0:01:37.7]} 22... axb5 {[%clk 0:01:59.3]} 23. Rxa8 {[%clk
0:01:37.3]} 23... Rxa8 {[%clk 0:02:00.2]} 24. Nd2 {[%clk 0:01:22.3]} 24... Bxb2
{[%clk 0:01:59.8]} 25. h3 {[%clk 0:01:19.9]} 25... Bc3 {[%clk 0:01:53.2]} 26.
Nf3 {[%clk 0:01:15.9]} 26... Bc6 {[%clk 0:01:48.2]} 27. Nd4 {[%clk 0:01:15.2]}
27... Bd7 {[%clk 0:01:48]} 28. Nf3 {[%clk 0:01:15.1]} 28... b4 {[%clk
0:01:39.1]} 29. Ne1 {[%clk 0:01:05]} 29... Ra1 {[%clk 0:01:22.1]} 30. Rxa1
{[%clk 0:01:04.7]} 30... Bxa1 {[%clk 0:01:23]} 31. Nd3 {[%clk 0:01:05.6]} 31...
Bc3 {[%clk 0:01:23.3]} 32. Kf1 {[%clk 0:01:05.5]} 32... Kd6 {[%clk 0:01:23.6]}
33. f3 {[%clk 0:01:05.7]} 33... f6 {[%clk 0:01:23.5]} 34. Ke2 {[%clk 0:01:05.9]}
34... e5 {[%clk 0:01:23.8]} 35. f4 {[%clk 0:01:03.5]} 35... Bc6 {[%clk
0:01:19.2]} 36. g3 {[%clk 0:01:02.2]} 36... Bb5 {[%clk 0:01:04]} 37. Ke3 {[%clk
0:01:00.5]} 37... Bd4+ {[%clk 0:01:02.9]} 38. Kd2 {[%clk 0:00:59.3]} 38... e4
{[%clk 0:00:59]} 39. Nxb4 {[%clk 0:00:59.3]} 39... Bf2 {[%clk 0:00:59.3]} 40. c4
{[%clk 0:00:57.7]} 40... Bd7 {[%clk 0:00:50.4]} 41. Nd5 {[%clk 0:00:57.9]} 41...
Bxg3 {[%clk 0:00:49.5]} 42. Ke3 {[%clk 0:00:58.1]} 42... Bh4 {[%clk 0:00:46.6]}
43. Nb6 {[%clk 0:00:37.3]} 43... Bc6 {[%clk 0:00:44.5]} 44. Nc8+ {[%clk
0:00:35.6]} 44... Kc5 {[%clk 0:00:41.5]} 45. Ne7 {[%clk 0:00:34.4]} 45... Bd7
{[%clk 0:00:41.8]} 46. Nd5 {[%clk 0:00:27]} 46... Be8 {[%clk 0:00:41.5]} 47. Ne7
{[%clk 0:00:18.8]} 47... Bd7 {[%clk 0:00:39.1]} 48. Nd5 {[%clk 0:00:18.9]} 48...
h5 {[%clk 0:00:39.6]} 49. Bd1 {[%clk 0:00:18.2]} 49... Be6 {[%clk 0:00:29.4]}
50. Bxh5 {[%clk 0:00:17.7]} 50... Kxc4 {[%clk 0:00:29.5]} 51. Ne7 {[%clk
0:00:17.4]} 51... Be1 {[%clk 0:00:18.9]} 52. Bg6 {[%clk 0:00:17.5]} 52... Bb4
{[%clk 0:00:18.7]} 53. Nxf5 {[%clk 0:00:17.6]} 53... Kd5 {[%clk 0:00:17.2]} 54.
Ne7+ {[%clk 0:00:17.5]} 54... Bxe7 {[%clk 0:00:17]} 55. Bxe4+ {[%clk 0:00:18.4]}
55... Kd6 {[%clk 0:00:17.3]} 56. h4 {[%clk 0:00:19.3]} 56... f5 {[%clk
0:00:17.3]} 57. Bf3 {[%clk 0:00:19.4]} 57... Bxh4 {[%clk 0:00:18]} 58. Ke2
{[%clk 0:00:20]} 58... Bd8 {[%clk 0:00:16.5]} 59. Kd3 {[%clk 0:00:20.2]} 59...
Bd5 {[%clk 0:00:16.7]} 60. Bh5 {[%clk 0:00:20.5]} 60... Be4+ {[%clk 0:00:15.8]}
61. Kc4 {[%clk 0:00:20.8]} 61... Bb6 {[%clk 0:00:15.8]} 62. Bg6 {[%clk
0:00:20.9]} 62... Be3 {[%clk 0:00:16.3]} 63. Bh5 {[%clk 0:00:21.3]} 63... Bxf4
{[%clk 0:00:16.6]} 64. Be2 {[%clk 0:00:22.2]} 64... Ke5 {[%clk 0:00:17]} 65. Kc5
{[%clk 0:00:22.1]} 65... Be3+ {[%clk 0:00:17.5]} 66. Kc4 {[%clk 0:00:22.1]}
66... f4 {[%clk 0:00:18]} 67. Bh5 {[%clk 0:00:22.7]} 67... Bb7 {[%clk
0:00:17.4]} 68. Kd3 {[%clk 0:00:22.8]} 68... Ba6+ {[%clk 0:00:16.8]} 69. Kc2
{[%clk 0:00:22.9]} 69... Kf5 {[%clk 0:00:14.9]} 70. Kd1 {[%clk 0:00:22.5]} 70...
Kg5 {[%clk 0:00:15.2]} 71. Bf3 {[%clk 0:00:22.9]} 71... Kh4 {[%clk 0:00:14.7]}
72. Bd5 {[%clk 0:00:23.1]} 72... Kg3 {[%clk 0:00:14.9]} 73. Kc2 {[%clk
0:00:23.5]} 73... f3 {[%clk 0:00:12.4]} 74. Bxf3 {[%clk 0:00:23.8]} 74... Kxf3
{[%clk 0:00:13.3]} 75. Kb3 {[%clk 0:00:24.6]} 75... Ke4 {[%clk 0:00:13.8]} 76.
Kc3 {[%clk 0:00:25.5]} 76... Bd4+ {[%clk 0:00:13.9]} 77. Kb4 {[%clk 0:00:26.4]}
77... Kd5 {[%clk 0:00:13.6]} 78. Ka5 {[%clk 0:00:27.3]} 78... Bc4 {[%clk
0:00:13]} 79. Kb4 {[%clk 0:00:28.2]} 79... Bd3 {[%clk 0:00:12.8]} 80. Kb3 {[%clk
0:00:28.4]} 80... Kc5 {[%clk 0:00:12.6]} 81. Ka4 {[%clk 0:00:27.9]} 81... Kc4
{[%clk 0:00:12]} 82. Ka5 {[%clk 0:00:28.2]} 82... Bc2 {[%clk 0:00:10.9]} 83. Ka6
{[%clk 0:00:28]} 83... Be4 {[%clk 0:00:09.8]} 84. Ka5 {[%clk 0:00:28.1]} 84...
Bc5 {[%clk 0:00:09.2]} 85. Ka6 {[%clk 0:00:27.9]} 85... Bb4 {[%clk 0:00:03.4]}
86. Kb6 {[%clk 0:00:27.8]} 86... Bd5 {[%clk 0:00:03.9]} 87. Kc7 {[%clk
0:00:27.6]} 87... Kc5 {[%clk 0:00:04.3]} 88. Kd7 {[%clk 0:00:27.7]} 88... Bc3
{[%clk 0:00:04.4]} 89. Ke7 {[%clk 0:00:27.7]} 89... Be5 {[%clk 0:00:05]} 90. Kd7
{[%clk 0:00:27.4]} 90... Bd6 {[%clk 0:00:04.7]} 91. Ke8 {[%clk 0:00:27.4]} 91...
Be6 {[%clk 0:00:04.8]} 92. Kd8 {[%clk 0:00:27.6]} 92... Kd5 {[%clk 0:00:05.4]}
93. Ke8 {[%clk 0:00:27.9]} 93... Ke5 {[%clk 0:00:05.7]} 94. Kd8 {[%clk
0:00:27.9]} 94... Kf6 {[%clk 0:00:06.4]} 95. Ke8 {[%clk 0:00:28]} 95... Be5
{[%clk 0:00:06.1]} 96. Kd8 {[%clk 0:00:28.2]} 96... Bd5 {[%clk 0:00:06.5]} 97.
Kd7 {[%clk 0:00:28.2]} 97... Kf7 {[%clk 0:00:07]} 98. Kc8 {[%clk 0:00:27.9]}
98... Ke7 {[%clk 0:00:06.5]} 1/2-1/2